bitfinex-derivatives/quotes_SOLF0:USTF0_20250228
["timestamp","ask_amount","ask_price","bid_price","bid_amount"]
[1740745268859,0.05462047,133.81,133.78,0.05618273]
[1740745269066,0.05462047,133.81,133.79,7.4793]
[1740745269664,0.05462047,133.81,133.78,0.05618273]
[1740745269865,0.05462047,133.81,133.8,7.4789]
[1740745270569,9.8024,133.86,133.81,7.4778]
[1740745270770,2.3267,133.86,133.81,7.4778]
[1740745271071,2.3267,133.86,133.73,193.03992938]
[1740745271264,2.3267,133.86,133.73,16.46095073]
[1740745271664,2.3267,133.86,133.78,0.04720913]
[1740745271665,0.04825423,133.81,133.78,0.04720913]
[1740745272465,5.423e-05,133.81,133.78,0.04720913]
[1740745272765,4.4393,133.88,133.84,7.4763]
[1740745273775,0.04829811,133.87,133.85,0.0527548]
[1740745274070,7.52359811,133.87,133.85,0.0527548]
[1740745275666,0.04829811,133.87,133.85,0.0527548]
[1740745275866,0.04829811,133.87,133.85,7.5287548]
[1740745276468,0.04829811,133.87,133.86,7.4755]
[1740745276665,0.04829811,133.87,133.85,0.0527548]
[1740745277673,7.52379811,133.87,133.85,0.0527548]
[1740745277876,0.04829811,133.87,133.85,0.0527548]
[1740745278472,7.4755,133.86,133.85,0.0527548]
[1740745279480,0.04829811,133.87,133.85,0.0527548]
[1740745280176,7.4755,133.86,133.85,0.0527548]
[1740745281281,0.04829811,133.87,133.85,0.0527548]
[1740745281673,0.04829811,133.87,133.85,7.5285548]
[1740745282075,0.04829811,133.87,133.85,0.0527548]
[1740745282276,7.4755,133.86,133.85,0.0527548]
[1740745283779,0.04829811,133.87,133.8,7.4786]
[1740745284081,2.3161,133.86,133.78,178.07452938]
[1740745284379,7.4779,133.82,133.79,7.4791]
[1740745284780,2.1175,133.85,133.77,7.4801]
[1740745284977,7.53319536,133.82,133.79,0.04930301]
[1740745285381,0.05529536,133.82,133.79,0.04930301]
[1740745286579,0.05529536,133.82,133.79,7.52840301]
[1740745286779,0.05529536,133.82,133.79,0.04930301]
[1740745288379,7.4787,133.81,133.79,0.04930301]
[1740745289278,7.4789,133.8,133.79,0.04930301]
[1740745289482,0.05529536,133.82,133.79,0.04930301]
[1740745289784,7.4788,133.81,133.79,0.04930301]
[1740745290283,7.53329536,133.82,133.79,0.04930301]
[1740745290882,0.05529536,133.82,133.79,0.04930301]
[1740745291383,0.05529536,133.82,133.81,7.4783]
[1740745292379,10.32133088,133.91,133.86,7.4752]
[1740745292582,16.92293088,133.91,133.78,11.96]
[1740745292780,16.92293088,133.91,133.79,1.3144]
[1740745293085,16.92293088,133.91,133.87,7.4745]
[1740745293086,14.0748,133.91,133.87,7.4745]
[1740745293484,11.9503,133.91,133.87,7.4745]
[1740745293683,7.52751176,133.9,133.88,0.04703439]
[1740745294676,7.4738,133.89,133.88,0.04703439]
[1740745295289,7.52791176,133.9,133.88,0.04703439]
[1740745295490,0.05421176,133.9,133.88,0.04703439]
[1740745295891,7.4738,133.89,133.88,0.04703439]
[1740745296088,0.05421176,133.9,133.8,1.1961]
[1740745296289,4.4771,133.91,133.8,1.1961]
[1740745296787,11.96,133.9,133.79,178.07452938]
[1740745297183,7.4782,133.82,133.78,7.4799]
[1740745297482,7.4782,133.82,133.79,0.05052763]
[1740745297687,0.04859144,133.81,133.79,0.05052763]
[1740745300490,0.04859144,133.81,133.79,7.52992763]
[1740745301489,0.04859144,133.81,133.79,0.05052763]
[1740745302488,0.04859144,133.81,133.79,7.52982763]
[1740745303991,0.04859144,133.81,133.79,0.05052763]
[1740745304584,0.04859144,133.81,133.76,7.4809]
[1740745305188,0.04859144,133.81,133.75,7.4814]
[1740745305389,2.1724,133.82,133.75,7.4814]
[1740745305583,2.1724,133.82,133.69,40.44085382]
[1740745305784,0.0483344,133.8,133.77,0.05441418]
[1740745305985,2.1724,133.82,133.73,7.4825]
[1740745306382,7.4809,133.77,133.73,7.4825]
[1740745306689,2.3143,133.76,133.69,40.44085382]
[1740745307193,0.05674129,133.74,133.71,0.05344833]
[1740745308488,0.05674129,133.74,133.64,40.44085382]
[1740745308692,14.2743,133.76,133.64,40.44085382]
[1740745309691,0.05662829,133.71,133.7,7.4842]
[1740745309892,7.4825,133.74,133.7,7.4842]
[1740745310193,0.05210986,133.72,133.7,7.4842]
[1740745313593,0.05210986,133.72,133.69,0.05235942]
[1740745313784,0.05210986,133.72,133.71,7.4839]
[1740745314590,0.05210986,133.72,133.69,0.05235942]
[1740745314795,7.4845,133.7,133.69,0.05235942]
[1740745315093,0.05210986,133.72,133.62,178.07452938]
[1740745315292,2.266,133.74,133.61,2.6037]
[1740745315896,7.4848,133.7,133.67,7.4858]
[1740745316195,0.05527281,133.69,133.67,7.4858]
[1740745317298,7.54047281,133.69,133.66,0.05200134]
[1740745317493,0.05527281,133.69,133.66,0.05200134]
[1740745317793,0.05527281,133.69,133.67,7.4859]
[1740745317994,0.05527281,133.69,133.66,0.05200134]
[1740745318395,0.05527281,133.69,133.68,7.4856]
[1740745321691,0.05527281,133.69,133.66,0.05200134]
[1740745322091,7.486,133.68,133.66,0.05200134]
[1740745322497,0.05527281,133.69,133.66,0.05200134]
[1740745323507,7.54037281,133.69,133.66,7.53850134]
[1740745323700,0.05527281,133.69,133.66,0.05200134]
[1740745323899,0.05527281,133.69,133.67,7.4861]
[1740745325497,7.54057281,133.69,133.66,7.53840134]
[1740745325693,0.05527281,133.69,133.66,0.05200134]
[1740745325893,0.05527281,133.69,133.68,7.4856]
[1740745326695,0.05527281,133.69,133.66,0.05200134]
[1740745327101,7.4859,133.68,133.66,0.05200134]
[1740745327301,0.05527281,133.69,133.66,0.05200134]
[1740745327502,2.2811,133.68,133.66,0.05200134]
[1740745327701,7.4861,133.67,133.66,0.05200134]
[1740745327898,7.4861,133.67,133.6,7.4898]
[1740745328097,7.4885,133.63,133.55,2.1754]
[1740745328300,2.1318,133.67,133.55,2.1754]
[1740745328606,7.4918,133.57,133.53,7.4935]
[1740745328804,11.98,133.61,133.5,18.79840047]
[1740745329009,14.2645,133.6,133.5,18.79840047]
[1740745329203,7.4924,133.56,133.51,7.4947]
[1740745329402,0.05380312,133.57,133.49,40.44085382]
[1740745329705,2.1318,133.59,133.49,40.44085382]
[1740745330204,0.05143256,133.55,133.49,40.44085382]
[1740745330509,14.2645,133.6,133.49,40.44085382]
[1740745330706,14.2645,133.6,133.48,3.544]
[1740745330902,14.2645,133.6,133.56,7.4921]
[1740745331208,14.2645,133.6,133.48,181.61852938]
[1740745331407,2.2845,133.6,133.48,181.61852938]
[1740745331605,0.05454631,133.55,133.54,7.4934]
[1740745332102,0.05546751,133.56,133.55,7.4929]
[1740745332507,2.2845,133.6,133.48,181.61852938]
[1740745332808,0.04794813,133.57,133.54,0.05535677]
[1740745333304,0.04794813,133.57,133.55,7.4929]
[1740745333700,0.04794813,133.57,133.54,0.05535677]
[1740745334306,0.04794813,133.57,133.56,7.4923]
[1740745335109,2.3065,133.66,133.56,3.74]
[1740745335306,11.98,133.68,133.57,3.029]
[1740745335699,11.98,133.68,133.65,7.4872]
[1740745336102,0.04916196,133.67,133.65,0.05309099]
[1740745336298,0.04916196,133.67,133.66,7.4867]
[1740745336504,2.212,133.72,133.65,0.05309099]
[1740745336704,10.32133088,133.73,133.71,7.4835]
[1740745336901,2.2045,133.74,133.71,7.4835]
[1740745337103,2.2045,133.74,133.59,193.05492938]
[1740745337302,4.4595,133.76,133.73,7.4824]
[1740745337508,2.212,133.76,133.65,11.98]
[1740745337699,0.04790873,133.76,133.73,0.05617118]
[1740745337903,10.32133088,133.77,133.74,7.4822]
[1740745338305,0.05214131,133.76,133.73,0.0513571]
[1740745338606,10.32133088,133.77,133.66,3.028]
[1740745338806,0.05286779,133.76,133.73,0.05462231]
[1740745339108,10.32133088,133.77,133.72,7.4829]
[1740745339304,0.05363225,133.76,133.73,0.05093581]
[1740745339807,0.05363225,133.76,133.73,7.53363581]
[1740745340805,0.05363225,133.76,133.75,7.4817]
[1740745341905,0.05363225,133.76,133.74,7.4821]
[1740745342113,0.05363225,133.76,133.73,0.05093581]
[1740745342407,2.28,133.84,133.73,181.86546519]
[1740745342615,4.5863,133.87,133.74,1.494]
[1740745342814,7.4757,133.86,133.74,1.494]
[1740745343015,7.4757,133.86,133.81,7.4779]
[1740745343610,0.05201038,133.85,133.82,0.05313121]
[1740745344803,0.05201038,133.85,133.83,7.4766]
[1740745345207,0.05201038,133.85,133.82,0.05313121]
[1740745345710,0.05201038,133.85,133.82,7.53063121]
[1740745345911,0.05201038,133.85,133.82,0.05313121]
[1740745349010,7.4772,133.83,133.82,0.05313121]
[1740745349213,15.75201038,133.85,133.74,1.494]
[1740745349411,11.96,133.85,133.74,1.494]
[1740745350115,11.96,133.85,133.81,7.4783]
[1740745350309,2.28,133.88,133.81,7.4783]
[1740745350505,0.05522065,133.84,133.81,7.4783]
[1740745350709,0.05522065,133.84,133.83,0.04869219]
[1740745351315,0.05522065,133.84,133.75,1.4676]
[1740745351714,2.28,133.88,133.75,1.4676]
[1740745352114,2.28,133.88,133.8,7.4789]
[1740745352316,7.4769,133.84,133.75,1.4676]
[1740745352518,7.4769,133.84,133.83,0.04857838]
[1740745352706,7.4769,133.84,133.8,7.4784]
[1740745352912,7.4769,133.84,133.82,0.04718839]
[1740745354011,7.52650892,133.85,133.82,0.04718839]
[1740745354216,0.05010892,133.85,133.82,0.04718839]
[1740745355111,7.477,133.84,133.82,0.04718839]
[1740745355307,0.05010892,133.85,133.82,0.04718839]
[1740745355716,0.05010892,133.85,133.83,7.4767]
[1740745355915,0.05010892,133.85,133.82,0.04718839]
[1740745356314,0.05010892,133.85,133.84,7.4766]
[1740745358718,2.3633,133.9,133.86,7.4751]
[1740745359114,2.3633,133.9,133.79,197.3019]
[1740745359314,2.2459,133.92,133.87,7.4747]
[1740745359512,2.2459,133.92,133.79,197.3019]
[1740745359718,7.4737,133.9,133.79,197.3019]
[1740745359922,0.05270785,133.87,133.86,7.4754]
[1740745361716,0.05270785,133.87,133.84,0.05065102]
[1740745362121,0.05270785,133.87,133.85,7.476]
[1740745362422,0.05270785,133.87,133.84,0.05065102]
[1740745362621,0.05270785,133.87,133.84,7.52695102]
[1740745362825,0.05270785,133.87,133.84,0.05065102]
[1740745363119,0.05270785,133.87,133.85,7.4758]
[1740745364418,0.05270785,133.87,133.84,0.05065102]
[1740745364617,0.05270785,133.87,133.86,7.4755]
[1740745368123,0.05270785,133.87,133.84,0.05065102]
[1740745369814,7.52800785,133.87,133.84,0.05065102]
[1740745370119,0.05270785,133.87,133.84,0.05065102]
[1740745372425,0.05270785,133.87,133.85,7.4759]
[1740745372728,0.05270785,133.87,133.84,0.05065102]
[1740745372925,2.44690785,133.87,133.84,0.05065102]
[1740745373618,7.4761,133.85,133.84,0.05065102]
[1740745374317,2.44690785,133.87,133.76,1.5164]
[1740745374518,2.3942,133.87,133.73,2.2732]
[1740745374728,2.3942,133.87,133.77,7.4805]
[1740745374929,7.4785,133.81,133.77,7.4805]
[1740745375526,0.0568132,133.8,133.79,7.4792]
[1740745375734,2.3942,133.87,133.73,2.2732]
[1740745376020,0.0566971,133.81,133.78,0.05109685]
[1740745376226,7.4781,133.82,133.77,7.4804]
[1740745376427,0.05121033,133.81,133.78,0.05396706]
[1740745376927,7.52991033,133.81,133.78,0.05396706]
[1740745377830,7.4792,133.8,133.78,0.05396706]
[1740745378021,0.05121033,133.81,133.78,0.05396706]
[1740745378429,7.4794,133.79,133.78,0.05396706]
[1740745378828,2.37,133.8,133.78,0.05396706]
[1740745379127,9.8492,133.8,133.78,0.05396706]
[1740745379728,2.37,133.8,133.78,0.05396706]
[1740745379931,4.6705,133.8,133.7,195.0]
[1740745380129,2.3112,133.79,133.69,2.2457]
[1740745380731,7.4805,133.78,133.74,7.4819]
[1740745380933,2.3112,133.79,133.74,7.4819]
[1740745381127,0.04827998,133.77,133.75,0.05329034]
[1740745381328,7.52927998,133.77,133.75,0.05329034]
[1740745383632,0.04827998,133.77,133.75,0.05329034]
[1740745383834,7.4811,133.76,133.75,0.05329034]
[1740745384530,7.4824,133.74,133.67,3.1109]
[1740745384835,2.3112,133.79,133.65,0.66723154]
[1740745385137,2.1883,133.73,133.67,7.4856]
[1740745385740,0.05264411,133.71,133.68,7.4856]
[1740745385938,0.05264411,133.71,133.65,0.66723154]
[1740745386244,7.4846,133.7,133.67,7.4858]
[1740745386640,0.05264411,133.71,133.64,2.3634]
[1740745386842,7.4852,133.69,133.66,7.4864]
[1740745387446,7.4847,133.7,133.66,7.4864]
[1740745387750,0.05264411,133.71,133.66,7.4864]
[1740745388038,7.485,133.69,133.66,7.4864]
[1740745390548,7.4847,133.7,133.67,7.4857]
[1740745390740,2.36214411,133.71,133.67,7.4857]
[1740745390939,0.0482929,133.7,133.67,7.4857]
[1740745391135,7.5329929,133.7,133.67,7.4857]
[1740745391347,0.0482929,133.7,133.66,7.4864]
[1740745391548,0.0482929,133.7,133.6,1.49700598]
[1740745392048,0.05685625,133.66,133.6,1.49700598]
[1740745392443,0.05685625,133.66,133.64,7.4876]
[1740745393247,0.05685625,133.66,133.59,2.3546]
[1740745393449,0.05685625,133.66,133.58,3.2128]
[1740745393651,7.4881,133.64,133.61,7.4892]
[1740745394045,0.05685625,133.66,133.61,7.4892]
[1740745394244,7.4881,133.64,133.61,7.4892]
[1740745394842,7.4883,133.64,133.61,7.4892]
[1740745395450,0.05685625,133.66,133.56,2.3546]
[1740745395654,11.96,133.68,133.56,2.3546]
[1740745395851,0.05105764,133.62,133.61,7.4892]
[1740745396052,11.96,133.68,133.56,2.3546]
[1740745396347,0.05242143,133.63,133.6,7.49]
[1740745396549,7.489,133.62,133.6,7.49]
[1740745396752,7.489,133.62,133.56,2.3546]
[1740745397053,0.05242143,133.63,133.53,3.2128]
[1740745397351,11.96,133.68,133.57,7.4913]
[1740745397551,0.05047694,133.59,133.57,7.4913]
[1740745397852,7.4902,133.6,133.57,7.4913]
[1740745398053,0.05574903,133.59,133.58,7.4911]
[1740745398248,7.4896,133.61,133.58,7.4911]
[1740745398444,7.4896,133.61,133.53,3.2128]
[1740745398642,0.04891045,133.6,133.58,7.4909]
[1740745399453,0.04891045,133.6,133.59,7.4906]
[1740745400552,0.04891045,133.6,133.58,7.491]
[1740745400854,0.04891045,133.6,133.53,3.2128]
[1740745401555,0.04891045,133.6,133.58,7.4909]
[1740745402356,7.53911045,133.6,133.53,3.2128]
[1740745402552,0.04891045,133.6,133.53,1.6466]
[1740745402847,7.4916,133.58,133.54,7.4931]
[1740745403053,7.4916,133.58,133.51,2.1912]
[1740745403554,0.05398167,133.56,133.51,2.1912]
[1740745403950,0.05398167,133.56,133.55,7.4929]
[1740745407454,8.167e-05,133.56,133.55,7.4929]
[1740745408859,8.167e-05,133.56,133.55,11.2329]
[1740745409163,8.167e-05,133.56,133.55,12.8831]
[1740745412462,8.167e-05,133.56,133.55,209.38066645]
[1740745412660,7.4857,133.68,133.56,14.9845]
[1740745412961,2.241,133.7,133.57,2.2489]
[1740745413156,7.4873,133.65,133.61,7.4891]
[1740745413759,0.05055465,133.64,133.62,0.05710491]
[1740745414263,0.05055465,133.64,133.55,1.49756645]
[1740745414462,4.5799,133.69,133.55,1.49756645]
[1740745415560,7.4893,133.62,133.58,7.4908]
[1740745416761,7.4893,133.62,133.59,7.4905]
[1740745417152,7.54432103,133.62,133.59,7.4905]
[1740745421662,7.54432103,133.62,133.6,7.4901]
[1740745423067,7.54432103,133.62,133.55,1.49756645]
[1740745423670,7.54432103,133.62,133.59,7.4903]
[1740745424170,0.05502103,133.62,133.55,1.49756645]
[1740745424470,0.05502103,133.62,133.6,7.4897]
[1740745424660,7.54402103,133.62,133.55,1.49756645]
[1740745425272,7.4896,133.61,133.55,1.49756645]
[1740745425673,0.05502103,133.62,133.57,7.4914]
[1740745426266,7.4904,133.6,133.57,7.4914]
[1740745426764,7.4913,133.58,133.52,5.4685]
[1740745427270,0.04844623,133.56,133.52,5.4685]
[1740745428074,0.04844623,133.56,133.55,7.4929]
[1740745430566,12.0727,133.63,133.54,0.0487434]
[1740745430772,4.5841,133.63,133.6,7.49]
[1740745431079,4.5841,133.63,133.52,14.989]
[1740745431767,0.05428872,133.59,133.57,7.4914]
[1740745434376,7.54508872,133.59,133.57,7.4914]
[1740745434576,7.54508872,133.59,133.56,7.54177968]
[1740745435676,7.54508872,133.59,133.57,7.4917]
[1740745438073,0.05428872,133.59,133.58,7.4912]
[1740745439671,155.43684971,133.68,133.58,3.74]
[1740745439881,43.57242489,133.66,133.54,206.98]
[1740745440072,43.57242489,133.66,133.55,18.9335]
[1740745440272,43.57242489,133.66,133.55,213.9335]
[1740745440574,41.34662489,133.66,133.55,198.9478]
[1740745440877,6.733e-05,133.62,133.59,0.04714279]
[1740745441468,6.733e-05,133.62,133.61,7.4895]
[1740745442974,6.733e-05,133.62,133.59,0.04714279]
[1740745444382,6.733e-05,133.62,133.61,7.4895]
[1740745445783,6.733e-05,133.62,133.6,7.49]
[1740745446382,6.733e-05,133.62,133.59,7.53764279]
[1740745446576,6.733e-05,133.62,133.59,0.04714279]
[1740745447085,6.733e-05,133.62,133.61,7.4895]
[1740745447487,6.733e-05,133.62,133.6,7.4899]
[1740745447986,6.733e-05,133.62,133.59,0.04714279]
[1740745448182,6.733e-05,133.62,133.59,7.53754279]
[1740745448387,6.733e-05,133.62,133.59,0.04714279]
[1740745449486,6.733e-05,133.62,133.6,7.4898]
[1740745449688,6.733e-05,133.62,133.59,0.04714279]
[1740745449989,6.733e-05,133.62,133.6,7.4897]
[1740745450283,6.733e-05,133.62,133.59,0.04714279]
[1740745450790,6.733e-05,133.62,133.6,7.4897]
[1740745450987,6.733e-05,133.62,133.59,0.04714279]
[1740745451388,6.733e-05,133.62,133.59,7.53744279]
[1740745451687,6.733e-05,133.62,133.59,0.04714279]
[1740745451891,6.733e-05,133.62,133.6,7.49]
[1740745452894,6.733e-05,133.62,133.59,0.04714279]
[1740745454797,6.733e-05,133.62,133.6,7.4901]
[1740745455388,6.733e-05,133.62,133.59,0.04714279]
[1740745455793,6.733e-05,133.62,133.59,7.53754279]
[1740745456094,6.733e-05,133.62,133.59,0.04714279]
[1740745456290,6.733e-05,133.62,133.61,7.4895]
[1740745456491,6.733e-05,133.62,133.59,0.04714279]
[1740745456995,6.733e-05,133.62,133.6,7.4898]
[1740745457189,6.733e-05,133.62,133.59,0.04714279]
[1740745458593,7.4899,133.61,133.59,0.04714279]
[1740745458994,6.733e-05,133.62,133.59,0.04714279]
[1740745459792,7.4901,133.6,133.59,0.04714279]
[1740745460593,7.4898,133.61,133.59,0.04714279]
[1740745460793,6.733e-05,133.62,133.59,0.04714279]
[1740745461395,7.4901,133.6,133.59,0.04714279]
[1740745464099,6.733e-05,133.62,133.59,0.04714279]
[1740745464299,7.4898,133.61,133.59,0.04714279]
[1740745465003,7.4898,133.61,133.59,7.53774279]
[1740745465192,6.733e-05,133.62,133.59,0.04714279]
[1740745465802,6.733e-05,133.62,133.6,7.4901]
[1740745466501,6.733e-05,133.62,133.61,7.4895]
[1740745474315,6.733e-05,133.62,133.59,0.04714279]
[1740745474811,7.48926733,133.62,133.59,7.53754279]
[1740745475914,6.733e-05,133.62,133.59,0.04714279]
[1740745476612,7.4901,133.6,133.59,0.04714279]
[1740745479719,7.4924,133.56,133.5,0.6680565]
[1740745479915,2.2804,133.6,133.5,0.6680565]
[1740745480819,7.4909,133.59,133.56,7.4923]
[1740745481020,2.2804,133.6,133.56,7.4923]
[1740745481218,0.05655638,133.59,133.56,7.4923]
[1740745481417,7.54715638,133.59,133.56,7.4923]
[1740745482321,0.05655638,133.59,133.54,0.05468303]
[1740745482522,7.4912,133.58,133.55,7.4925]
[1740745483923,7.54755638,133.59,133.56,7.492]
[1740745485123,0.05655638,133.59,133.56,7.492]
[1740745485422,7.4912,133.58,133.56,7.492]
[1740745485619,0.05655638,133.59,133.54,0.05468303]
[1740745485820,7.54755638,133.59,133.54,0.05468303]
[1740745486218,0.05655638,133.59,133.56,7.4921]
[1740745486417,7.4913,133.58,133.56,7.4921]
[1740745486619,0.05655638,133.59,133.56,7.4921]
[1740745486920,7.54745638,133.59,133.56,7.4921]
[1740745487825,0.05655638,133.59,133.58,7.4912]
[1740745490721,5.638e-05,133.59,133.58,7.4912]
[1740745495320,5.638e-05,133.59,133.58,11.2312]
[1740745497125,5.638e-05,133.59,133.58,7.4912]
[1740745501130,5.638e-05,133.59,133.57,7.54428926]
[1740745501630,5.638e-05,133.59,133.57,0.05278926]
[1740745503830,7.49095638,133.59,133.57,0.05278926]
[1740745504342,5.638e-05,133.59,133.57,0.05278926]
[1740745505240,5.638e-05,133.59,133.58,7.4912]
[1740745506340,5.638e-05,133.59,133.58,11.2312]
[1740745506541,5.638e-05,133.59,133.58,16.7449]
[1740745507648,5.638e-05,133.59,133.58,211.7449]
[1740745511844,5.638e-05,133.59,133.58,206.3289]
[1740745512143,5.638e-05,133.59,133.58,202.4912]
[1740745513048,5.638e-05,133.59,133.58,7.4912]
[1740745514643,5.638e-05,133.59,133.58,11.2312]
[1740745517044,5.638e-05,133.59,133.58,12.6068512]
[1740745517649,5.638e-05,133.59,133.58,11.2312]
[1740745518750,5.638e-05,133.59,133.58,14.10405349]
[1740745518950,2.2978,133.7,133.68,7.4855]
[1740745519950,2.35256649,133.7,133.68,7.53470663]
[1740745520343,0.05476649,133.7,133.68,0.04920663]
[1740745524644,7.53936649,133.7,133.68,0.04920663]
[1740745524847,0.05476649,133.7,133.62,11.96]
[1740745525249,7.4863,133.67,133.63,7.4881]
[1740745525449,4.5978,133.66,133.63,7.4881]
[1740745525849,7.4873,133.65,133.59,195.0]
[1740745526050,7.4873,133.65,133.63,0.05077852]
[1740745526348,7.4882,133.64,133.6,7.4896]
[1740745526549,4.5978,133.66,133.58,1.49723012]
[1740745526950,4.5978,133.66,133.56,41.03187016]
[1740745527453,0.05214225,133.62,133.6,0.04863957]
[1740745527951,4.225e-05,133.62,133.61,7.4895]
[1740745530554,4.225e-05,133.62,133.6,7.53843957]
[1740745531056,4.225e-05,133.62,133.54,195.0]
[1740745531356,4.225e-05,133.62,133.58,7.4909]
[1740745531556,2.2894,133.65,133.58,7.4909]
[1740745531758,7.4899,133.61,133.57,7.4916]
[1740745531952,2.3327,133.6,133.57,7.4916]
[1740745532253,9.87905824,133.6,133.58,0.05399909]
[1740745532450,9.87905824,133.6,133.57,7.4916]
[1740745533251,2.38885824,133.6,133.57,7.4916]
[1740745533452,2.38885824,133.6,133.57,7.4915]
[1740745533752,2.38885824,133.6,133.52,10.25796754]
[1740745533954,9.87925824,133.6,133.57,7.4917]
[1740745534253,9.87925824,133.6,133.57,3.8748]
[1740745534458,2.38885824,133.6,133.52,10.25796754]
[1740745534658,2.38885824,133.6,133.58,7.4911]
[1740745534852,2.38885824,133.6,133.52,10.25796754]
[1740745535058,2.38885824,133.6,133.57,7.4912]
[1740745535255,2.38885824,133.6,133.52,10.25796754]
[1740745535456,2.38885824,133.6,133.51,14.9901]
[1740745535759,11.96,133.69,133.51,3.74991512]
[1740745535955,0.0495616,133.57,133.52,14.989]
[1740745536159,2.236,133.61,133.52,14.989]
[1740745536360,0.05011541,133.56,133.52,14.989]
[1740745536755,0.05011541,133.56,133.55,7.4929]
[1740745536950,1.541e-05,133.56,133.55,7.4929]
[1740745546358,1.541e-05,133.56,133.54,7.548889]
[1740745546568,1.541e-05,133.56,133.54,0.055689]
[1740745547463,1.541e-05,133.56,133.55,7.4929]
[1740745547763,1.541e-05,133.56,133.55,3.8755]
[1740745548863,1.541e-05,133.56,133.54,7.548689]
[1740745549069,1.541e-05,133.56,133.54,0.055689]
[1740745549264,1.541e-05,133.56,133.48,14.993]
[1740745549464,7.49241541,133.56,133.53,7.4937]
[1740745549656,2.2793,133.55,133.53,7.4937]
[1740745551662,2.2793,133.55,133.48,14.993]
[1740745552155,0.05682929,133.53,133.52,7.4946]
[1740745563073,2.929e-05,133.53,133.52,7.4946]
[1740745565572,2.929e-05,133.53,133.52,11.2346]
[1740745565780,2.929e-05,133.53,133.52,29.9885]
[1740745566481,2.929e-05,133.53,133.52,31.36482572]
[1740745566780,2.929e-05,133.53,133.52,26.2485]
[1740745567177,2.929e-05,133.53,133.52,29.9885]
[1740745567371,2.929e-05,133.53,133.52,32.86274395]
[1740745567871,2.929e-05,133.53,133.52,31.48640293]
[1740745568882,2.929e-05,133.53,133.52,32.86276736]
[1740745569285,41.37338498,133.66,133.52,25.36816736]
[1740745569471,41.37338498,133.66,133.54,14.9869]
[1740745570379,41.37338498,133.66,133.55,1.49756645]
[1740745570583,2.3379,133.67,133.59,0.05163745]
[1740745570788,2.163e-05,133.62,133.59,0.05163745]
[1740745570978,2.163e-05,133.62,133.59,12.01163745]
[1740745571383,2.163e-05,133.62,133.61,7.4895]
[1740745573181,2.163e-05,133.62,133.59,0.05163745]
[1740745573584,2.163e-05,133.62,133.59,7.54213745]
[1740745575093,2.163e-05,133.62,133.59,0.05163745]
[1740745575588,2.163e-05,133.62,133.61,7.4895]
[1740745577490,2.163e-05,133.62,133.6,7.4899]
[1740745577685,2.163e-05,133.62,133.59,0.05163745]
[1740745578087,2.163e-05,133.62,133.59,7.54223745]
[1740745578492,7.48902163,133.62,133.59,0.05163745]
[1740745578991,2.163e-05,133.62,133.59,0.05163745]
[1740745579192,2.163e-05,133.62,133.59,7.54223745]
[1740745580186,2.163e-05,133.62,133.6,7.4899]
[1740745580991,2.163e-05,133.62,133.59,7.54203745]
[1740745581187,7.48922163,133.62,133.59,7.54203745]
[1740745581392,7.48922163,133.62,133.59,0.05163745]
[1740745581789,2.163e-05,133.62,133.59,0.05163745]
[1740745581996,2.3393,133.61,133.57,7.4915]
[1740745582293,7.4906,133.6,133.57,7.4915]
[1740745582889,4.6791,133.61,133.51,195.0]
[1740745583088,4.6791,133.61,133.57,0.05304793]
[1740745583089,7.491,133.59,133.57,0.05304793]
[1740745583288,0.04991246,133.57,133.56,7.492]
[1740745583794,0.04991246,133.57,133.55,0.05436376]
[1740745583990,0.04991246,133.57,133.49,217.8857]
[1740745584194,0.04991246,133.57,133.52,0.05301707]
[1740745584797,0.04991246,133.57,133.55,7.4928]
[1740745585702,0.04991246,133.57,133.52,0.05301707]
[1740745585998,7.54201246,133.57,133.54,7.4932]
[1740745586200,7.54201246,133.57,133.52,0.05301707]
[1740745587399,7.54201246,133.57,133.54,7.4932]
[1740745588598,0.04991246,133.57,133.52,0.05301707]
[1740745588897,7.4933,133.55,133.52,0.05301707]
[1740745591003,9.8106,133.55,133.52,0.05301707]
[1740745591803,2.3483,133.54,133.52,0.05301707]
[1740745592300,9.8421,133.54,133.5,7.4955]
[1740745593403,0.05602247,133.53,133.5,7.4955]
[1740745593999,7.55012247,133.53,133.5,7.4955]
[1740745594699,0.05602247,133.53,133.5,7.4955]
[1740745595005,7.4946,133.52,133.42,17.3294]
[1740745595205,2.3939,133.51,133.42,17.3294]
[1740745595405,9.8893,133.51,133.48,7.4967]
[1740745595900,9.94153028,133.51,133.48,7.4967]